{"text_format":"3","workbook":"xlsx","n_sheets":2,"sheets":["Опис на оборудване","Настройки"],"not_rendered":{"defined_names":4},"read":"whole","date_system":"1900"}

{"sheet":"Опис на оборудване","index":0,"n_rows":35,"n_cols":6,"rows_kept":35,"merged":[[0,1,2,2],[0,4,0,5]]}
[]
[{"$nulls":4},"Засвети елементи, по-стари от:"]
[{"$nulls":4},4]
[]
[null,"ИД НА ОБОРУДВАНЕ","ИМЕ НА АРТИКУЛ","ЗАЧИСЛЕНО НА","ДАТА НА ЗАЧИСЛЯВАНЕ","ВЪЗРАСТ НА АРТИКУЛ"]
[null,"АРТИКУЛ0001","стол","Служител 1",{"$f":"TODAY()-25","v":"2012-12-13"},{"$f":"IF(табл_ОписОборудване[[#This Row],[ДАТА НА ЗАЧИСЛЯВАНЕ]]<>\"\",TODAY()-табл_ОписОборудване[[#This Row],[ДАТА НА ЗАЧИСЛЯВАНЕ]],\"\")","v":{"v":25,"d":"25 дни"}}]
[null,"АРТИКУЛ0002","лазерен принтер","Служител 2",{"$f":"TODAY()-479","v":"2011-09-16"},{"$f":"IF(табл_ОписОборудване[[#This Row],[ДАТА НА ЗАЧИСЛЯВАНЕ]]<>\"\",TODAY()-табл_ОписОборудване[[#This Row],[ДАТА НА ЗАЧИСЛЯВАНЕ]],\"\")","v":{"v":479,"d":"479 дни"}}]
[null,"АРТИКУЛ0003","скенер","Служител 3",{"$f":"TODAY()-177","v":"2012-07-14"},{"$f":"IF(табл_ОписОборудване[[#This Row],[ДАТА НА ЗАЧИСЛЯВАНЕ]]<>\"\",TODAY()-табл_ОписОборудване[[#This Row],[ДАТА НА ЗАЧИСЛЯВАНЕ]],\"\")","v":{"v":177,"d":"177 дни"}}]
[null,"АРТИКУЛ0004","лазерен принтер","Служител 7",{"$f":"TODAY()-18","v":"2012-12-20"},{"$f":"IF(табл_ОписОборудване[[#This Row],[ДАТА НА ЗАЧИСЛЯВАНЕ]]<>\"\",TODAY()-табл_ОписОборудване[[#This Row],[ДАТА НА ЗАЧИСЛЯВАНЕ]],\"\")","v":{"v":18,"d":"18 дни"}}]
[null,"АРТИКУЛ0005","машина за кафе","Служител 20",{"$f":"TODAY()-227","v":"2012-05-25"},{"$f":"IF(табл_ОписОборудване[[#This Row],[ДАТА НА ЗАЧИСЛЯВАНЕ]]<>\"\",TODAY()-табл_ОписОборудване[[#This Row],[ДАТА НА ЗАЧИСЛЯВАНЕ]],\"\")","v":{"v":227,"d":"227 дни"}}]
[null,"АРТИКУЛ0006","скенер","Служител 14",{"$f":"TODAY()-50","v":"2012-11-18"},{"$f":"IF(табл_ОписОборудване[[#This Row],[ДАТА НА ЗАЧИСЛЯВАНЕ]]<>\"\",TODAY()-табл_ОписОборудване[[#This Row],[ДАТА НА ЗАЧИСЛЯВАНЕ]],\"\")","v":{"v":50,"d":"50 дни"}}]
[null,"АРТИКУЛ0007","маса","Служител 4",{"$f":"TODAY()-120","v":"2012-09-09"},{"$f":"IF(табл_ОписОборудване[[#This Row],[ДАТА НА ЗАЧИСЛЯВАНЕ]]<>\"\",TODAY()-табл_ОписОборудване[[#This Row],[ДАТА НА ЗАЧИСЛЯВАНЕ]],\"\")","v":{"v":120,"d":"120 дни"}}]
[null,"АРТИКУЛ0008","копирна машина","Служител 12",{"$f":"TODAY()-499","v":"2011-08-27"},{"$f":"IF(табл_ОписОборудване[[#This Row],[ДАТА НА ЗАЧИСЛЯВАНЕ]]<>\"\",TODAY()-табл_ОписОборудване[[#This Row],[ДАТА НА ЗАЧИСЛЯВАНЕ]],\"\")","v":{"v":499,"d":"499 дни"}}]
[null,"АРТИКУЛ0009","допълнителен монитор","Служител 8",{"$f":"TODAY()-30","v":"2012-12-08"},{"$f":"IF(табл_ОписОборудване[[#This Row],[ДАТА НА ЗАЧИСЛЯВАНЕ]]<>\"\",TODAY()-табл_ОписОборудване[[#This Row],[ДАТА НА ЗАЧИСЛЯВАНЕ]],\"\")","v":{"v":30,"d":"30 дни"}}]
[null,"АРТИКУЛ0010","бяла дъска","Служител 19",{"$f":"TODAY()-50","v":"2012-11-18"},{"$f":"IF(табл_ОписОборудване[[#This Row],[ДАТА НА ЗАЧИСЛЯВАНЕ]]<>\"\",TODAY()-табл_ОписОборудване[[#This Row],[ДАТА НА ЗАЧИСЛЯВАНЕ]],\"\")","v":{"v":50,"d":"50 дни"}}]
[null,"АРТИКУЛ0011","копирна машина","Служител 12",{"$f":"TODAY()-450","v":"2011-10-15"},{"$f":"IF(табл_ОписОборудване[[#This Row],[ДАТА НА ЗАЧИСЛЯВАНЕ]]<>\"\",TODAY()-табл_ОписОборудване[[#This Row],[ДАТА НА ЗАЧИСЛЯВАНЕ]],\"\")","v":{"v":450,"d":"450 дни"}}]
[null,"АРТИКУЛ0012","канцеларска принадлежност","Служител 18",{"$f":"TODAY()-420","v":"2011-11-14"},{"$f":"IF(табл_ОписОборудване[[#This Row],[ДАТА НА ЗАЧИСЛЯВАНЕ]]<>\"\",TODAY()-табл_ОписОборудване[[#This Row],[ДАТА НА ЗАЧИСЛЯВАНЕ]],\"\")","v":{"v":420,"d":"420 дни"}}]
[null,"АРТИКУЛ0013","допълнителен монитор","Служител 8",{"$f":"TODAY()-250","v":"2012-05-02"},{"$f":"IF(табл_ОписОборудване[[#This Row],[ДАТА НА ЗАЧИСЛЯВАНЕ]]<>\"\",TODAY()-табл_ОписОборудване[[#This Row],[ДАТА НА ЗАЧИСЛЯВАНЕ]],\"\")","v":{"v":250,"d":"250 дни"}}]
[null,"АРТИКУЛ0014","машина за кафе","Служител 9",{"$f":"TODAY()-45","v":"2012-11-23"},{"$f":"IF(табл_ОписОборудване[[#This Row],[ДАТА НА ЗАЧИСЛЯВАНЕ]]<>\"\",TODAY()-табл_ОписОборудване[[#This Row],[ДАТА НА ЗАЧИСЛЯВАНЕ]],\"\")","v":{"v":45,"d":"45 дни"}}]
[null,"АРТИКУЛ0015","канцеларска принадлежност","Служител 13",{"$f":"TODAY()-502","v":"2011-08-24"},{"$f":"IF(табл_ОписОборудване[[#This Row],[ДАТА НА ЗАЧИСЛЯВАНЕ]]<>\"\",TODAY()-табл_ОписОборудване[[#This Row],[ДАТА НА ЗАЧИСЛЯВАНЕ]],\"\")","v":{"v":502,"d":"502 дни"}}]
[null,"АРТИКУЛ0016","скенер","Служител 1",{"$f":"TODAY()-350","v":"2012-01-23"},{"$f":"IF(табл_ОписОборудване[[#This Row],[ДАТА НА ЗАЧИСЛЯВАНЕ]]<>\"\",TODAY()-табл_ОписОборудване[[#This Row],[ДАТА НА ЗАЧИСЛЯВАНЕ]],\"\")","v":{"v":350,"d":"350 дни"}}]
[null,"АРТИКУЛ0017","копирна машина","Служител 19",{"$f":"TODAY()-125","v":"2012-09-04"},{"$f":"IF(табл_ОписОборудване[[#This Row],[ДАТА НА ЗАЧИСЛЯВАНЕ]]<>\"\",TODAY()-табл_ОписОборудване[[#This Row],[ДАТА НА ЗАЧИСЛЯВАНЕ]],\"\")","v":{"v":125,"d":"125 дни"}}]
[null,"АРТИКУЛ0018","бяла дъска","Служител 15",{"$f":"TODAY()-90","v":"2012-10-09"},{"$f":"IF(табл_ОписОборудване[[#This Row],[ДАТА НА ЗАЧИСЛЯВАНЕ]]<>\"\",TODAY()-табл_ОписОборудване[[#This Row],[ДАТА НА ЗАЧИСЛЯВАНЕ]],\"\")","v":{"v":90,"d":"90 дни"}}]
[null,"АРТИКУЛ0019","стол","Служител 16",{"$f":"TODAY()-730","v":"2011-01-08"},{"$f":"IF(табл_ОписОборудване[[#This Row],[ДАТА НА ЗАЧИСЛЯВАНЕ]]<>\"\",TODAY()-табл_ОписОборудване[[#This Row],[ДАТА НА ЗАЧИСЛЯВАНЕ]],\"\")","v":{"v":730,"d":"730 дни"}}]
[null,"АРТИКУЛ0020","кърпя за прах (1 комплект)","Служител 3",{"$f":"TODAY()-540","v":"2011-07-17"},{"$f":"IF(табл_ОписОборудване[[#This Row],[ДАТА НА ЗАЧИСЛЯВАНЕ]]<>\"\",TODAY()-табл_ОписОборудване[[#This Row],[ДАТА НА ЗАЧИСЛЯВАНЕ]],\"\")","v":{"v":540,"d":"540 дни"}}]
[null,"АРТИКУЛ0021","лазерен принтер","Служител 7",{"$f":"TODAY()-18","v":"2012-12-20"},{"$f":"IF(табл_ОписОборудване[[#This Row],[ДАТА НА ЗАЧИСЛЯВАНЕ]]<>\"\",TODAY()-табл_ОписОборудване[[#This Row],[ДАТА НА ЗАЧИСЛЯВАНЕ]],\"\")","v":{"v":18,"d":"18 дни"}}]
[null,"АРТИКУЛ0022","преносим компютър","Служител 8",{"$f":"TODAY()-283","v":"2012-03-30"},{"$f":"IF(табл_ОписОборудване[[#This Row],[ДАТА НА ЗАЧИСЛЯВАНЕ]]<>\"\",TODAY()-табл_ОписОборудване[[#This Row],[ДАТА НА ЗАЧИСЛЯВАНЕ]],\"\")","v":{"v":283,"d":"283 дни"}}]
[null,"АРТИКУЛ0023","канцеларска принадлежност","Служител 9",{"$f":"TODAY()-479","v":"2011-09-16"},{"$f":"IF(табл_ОписОборудване[[#This Row],[ДАТА НА ЗАЧИСЛЯВАНЕ]]<>\"\",TODAY()-табл_ОписОборудване[[#This Row],[ДАТА НА ЗАЧИСЛЯВАНЕ]],\"\")","v":{"v":479,"d":"479 дни"}}]
[null,"АРТИКУЛ0024","лазерен принтер","Служител 19",{"$f":"TODAY()-355","v":"2012-01-18"},{"$f":"IF(табл_ОписОборудване[[#This Row],[ДАТА НА ЗАЧИСЛЯВАНЕ]]<>\"\",TODAY()-табл_ОписОборудване[[#This Row],[ДАТА НА ЗАЧИСЛЯВАНЕ]],\"\")","v":{"v":355,"d":"355 дни"}}]
[null,"АРТИКУЛ0025","маса","Служител 7",{"$f":"TODAY()-28","v":"2012-12-10"},{"$f":"IF(табл_ОписОборудване[[#This Row],[ДАТА НА ЗАЧИСЛЯВАНЕ]]<>\"\",TODAY()-табл_ОписОборудване[[#This Row],[ДАТА НА ЗАЧИСЛЯВАНЕ]],\"\")","v":{"v":28,"d":"28 дни"}}]
[null,"АРТИКУЛ0026","бяла дъска","Служител 8",{"$f":"TODAY()-28","v":"2012-12-10"},{"$f":"IF(табл_ОписОборудване[[#This Row],[ДАТА НА ЗАЧИСЛЯВАНЕ]]<>\"\",TODAY()-табл_ОписОборудване[[#This Row],[ДАТА НА ЗАЧИСЛЯВАНЕ]],\"\")","v":{"v":28,"d":"28 дни"}}]
[null,"АРТИКУЛ0027","преносим компютър","Служител 19",{"$f":"TODAY()-736","v":"2011-01-02"},{"$f":"IF(табл_ОписОборудване[[#This Row],[ДАТА НА ЗАЧИСЛЯВАНЕ]]<>\"\",TODAY()-табл_ОписОборудване[[#This Row],[ДАТА НА ЗАЧИСЛЯВАНЕ]],\"\")","v":{"v":736,"d":"736 дни"}}]
[null,"АРТИКУЛ0028","маса","Служител 12",{"$f":"TODAY()-68","v":"2012-10-31"},{"$f":"IF(табл_ОписОборудване[[#This Row],[ДАТА НА ЗАЧИСЛЯВАНЕ]]<>\"\",TODAY()-табл_ОписОборудване[[#This Row],[ДАТА НА ЗАЧИСЛЯВАНЕ]],\"\")","v":{"v":68,"d":"68 дни"}}]
[null,"АРТИКУЛ0029","скенер","Служител 14",{"$f":"TODAY()-67","v":"2012-11-01"},{"$f":"IF(табл_ОписОборудване[[#This Row],[ДАТА НА ЗАЧИСЛЯВАНЕ]]<>\"\",TODAY()-табл_ОписОборудване[[#This Row],[ДАТА НА ЗАЧИСЛЯВАНЕ]],\"\")","v":{"v":67,"d":"67 дни"}}]
[null,"АРТИКУЛ0030","машина за кафе","Служител 3",{"$f":"TODAY()-149","v":"2012-08-11"},{"$f":"IF(табл_ОписОборудване[[#This Row],[ДАТА НА ЗАЧИСЛЯВАНЕ]]<>\"\",TODAY()-табл_ОписОборудване[[#This Row],[ДАТА НА ЗАЧИСЛЯВАНЕ]],\"\")","v":{"v":149,"d":"149 дни"}}]

{"sheet":"Настройки","index":1,"n_rows":23,"n_cols":4,"rows_kept":23}
[]
[]
[null,"СЛУЖИТЕЛИ",null,"АРТИКУЛИ"]
[null,"Служител 1",null,"стол"]
[null,"Служител 2",null,"машина за кафе"]
[null,"Служител 3",null,"копирна машина"]
[null,"Служител 4",null,"настолен компютър"]
[null,"Служител 5",null,"кърпя за прах (1 комплект)"]
[null,"Служител 6",null,"допълнителен монитор"]
[null,"Служител 7",null,"мастиленоструен принтер"]
[null,"Служител 8",null,"преносим компютър"]
[null,"Служител 9",null,"лазерен принтер"]
[null,"Служител 10",null,"маркери (пакет от 3)"]
[null,"Служител 11",null,"скенер"]
[null,"Служител 12",null,"канцеларска принадлежност"]
[null,"Служител 13",null,"маса"]
[null,"Служител 14",null,"USB устройство"]
[null,"Служител 15",null,"бяла дъска"]
[null,"Служител 16"]
[null,"Служител 17"]
[null,"Служител 18"]
[null,"Служител 19"]
[null,"Служител 20"]